Cogmind - Beta 15 @@@ ROGUE MODE // 2025.10.16 @ 19:04:53 Player: the Result: Destroyed by as-38230 with Assembled Rifle Performance ------------- Evolutions (0) 0 Regions Visited (4) 800 Robots Destroyed (37) 185 Value Destroyed (535) 535 Prototype IDs (24) 480 Alien Tech Used (0) 0 Bonus (0) 0 TOTAL SCORE: 2000 Bonus ------- None Cogmind --------- Core Integrity 0/250 Matter 124/300 Energy 22/100 System Corruption 2% Temperature Cool (0) Movement Treading (240) Ox1 Location -9/Mines Parts ------- > --- POWER (1) -------- (None) > --- PROPULSION (2) --- Light Treads > --- UTILITY (2) ------ Large Storage Unit > --- WEAPON (2) ------- EM Shotgun EM Shotgun > --- INVENTORY (15) --- Disposable Heat Sink Disposable Heat Sink Experimental Sensor Array Makeshift Hacking Suite PSU Rigger EM Shotgun Medium Laser Medium Laser Medium Laser Hammer Peak State ------------ > --- POWER ------------ Micro Nuclear Core > --- PROPULSION ------- Light Treads Light Treads > --- UTILITY ---------- Large Storage Unit Experimental Sensor Array > --- WEAPON ----------- Assault Rifle Assault Rifle > --- INVENTORY -------- Light Treads Disposable Heat Sink Disposable Heat Sink Makeshift Hacking Suite PSU Rigger EM Shotgun EM Shotgun EM Shotgun Medium Laser Medium Laser Medium Laser Assault Rifle Grenade Launcher Grenade Launcher Hammer [Rating: 21] Favorites ----------- Power Ion Engine Engine Ion Engine Power Core Micro Nuclear Core Propulsion Light Treads Treads Light Treads Leg Aluminum Leg Wheel Wheel Utility Seismic Detector Device Seismic Detector Storage Large Storage Unit Weapon Assault Rifle Energy Gun EM Shotgun Ballistic Gun Assault Rifle Launcher Grenade Launcher Impact Weapon Hammer Build | -11 -10 -10 -10 -9 ------- Run | Yrd Mat Min Exi Min Slots Evolved . | . . . . . Power . | . . . . . Propulsion . | . . . . . Utility . | . . . . . Weapon . | . . . . . Parts Attached 33 | 9 18 . 2 4 Power 4 | 2 1 . 1 . Engine 3 | 2 1 . . . Core 1 | . . . 1 . Reactor . | . . . . . Propulsion 10 | 2 6 . 1 1 Treads 4 | . 2 . 1 1 Leg 4 | 2 2 . . . Wheel 2 | . 2 . . . Hover . | . . . . . Flight . | . . . . . Utility 6 | 2 3 . . 1 Device 3 | 1 1 . . 1 Storage 3 | 1 2 . . . Processor . | . . . . . Hackware . | . . . . . Protection . | . . . . . Artifact . | . . . . . Weapon 13 | 3 8 . . 2 Energy Gun 5 | 2 2 . . 1 Energy Cannon . | . . . . . Ballistic Gun 5 | 1 4 . . . Ballistic Cannon . | . . . . . Launcher 2 | . 1 . . 1 Special Weapon . | . . . . . Impact Weapon 1 | . 1 . . . Slashing Weapon . | . . . . . Piercing Weapon . | . . . . . Special Melee Weapon . | . . . . . Unidentified Prototypes 1 | . . . . 1 Parts Lost 8 | . . . . 8 Power 1 | . . . . 1 Propulsion 2 | . . . . 2 Utility 1 | . . . . 1 Weapon 4 | . . . . 4 Highest Loss Streak 8 | . . . . 8 To Critical Strikes . | . . . . . Average Backups 12 | 2 11 15 15 14 Power . | . . . . . Propulsion 1 | . 3 2 1 . Utility 2 | . 1 3 3 4 Weapon 8 | . 6 10 10 9 Tool/Special . | . . . . . Unused Backups 14 | 1 4 . 1 8 Power . | . . . . . Propulsion 3 | . 3 . . . Utility 6 | 1 . . 1 4 Weapon 5 | . 1 . . 4 Tool/Special . | . . . . . Average Slot Usage (%) 99 | . 99 100 100 96 Engine 10 | . 14 14 5 . Core 3 | . . . 8 12 Treads 23 | . 17 28 28 28 Leg 3 | . 8 . . . Device 13 | . 14 14 14 13 Storage 14 | . 14 14 14 14 Energy Gun 6 | . 15 . . . Ballistic Gun 21 | . 12 27 28 23 Peak Build Rating 21 | 7 12 9 13 21 Average Rating 9 | 4 9 9 11 12 On Entrance 7 | . 7 9 9 13 Naked Turns . | . . . . . Heaviest Build 33 | 15 31 30 31 33 Greatest Support 40 | 20 40 40 40 40 Greatest Overweight (x) 1 | . 1 . . 1 Average Overweight (x) . | . . . . . Largest Inventory Capacity 15 | 8 15 15 15 15 Average Capacity 13 | 6 12 15 15 15 Most Carried 15 | 6 15 15 15 15 Average Carried 12 | 2 11 15 14 14 Final Capacity 15 | 8 15 15 15 15 Final Carried 15 | 5 15 15 15 10 Class Distribution -------------------- 94% | Mutant 5% | Commander-Mutant Dominant Class ---------------- Mutant | -10/Materials Mutant | -10/Mines Mutant | -10/Exiles Commander-Mutant | -9/Mines Resources | -11 -10 -10 -10 -9 ----------- Run | Yrd Mat Min Exi Min Matter Collected 917 | 328 360 152 63 14 Remotely . | . . . . . Salvage Created 1018 | 181 693 61 44 39 Parts 79 | 13 51 12 3 . Haulers Intercepted 2 | . 2 . . . Recyclers Shooed 3 | 2 . . . 1 Parts Field Recycled . | . . . . . Retrieved Matter . | . . . . . Parts Self-Destructed . | . . . . . Prevented . | . . . . . Kills | -11 -10 -10 -10 -9 ------- Run | Yrd Mat Min Exi Min Combat Hostiles Destroyed 30 | . 13 8 . 9 Guns 17 | . 13 1 . 3 AOE 13 | . . 7 . 6 Classes Destroyed 9 | 2 6 . . 1 Worker 2 | . 2 . . . Tunneler 6 | 5 . 1 . . Hauler 2 | . 2 . . . Recycler 2 | 1 1 . . . Operator 2 | . 2 . . . Watcher 2 | . 2 . . . Swarmer 14 | . 8 6 . . Grunt 7 | . 5 2 . . Assembled 9 | . . . . 9 Best Kill Streak 9 | 6 5 4 . 9 Combat Bots Only 9 | . 3 3 . 9 Max Kills in Single Turn 4 | 1 1 4 . 2 Gunslinging . | . . . . . Exploded 3 | . . 3 . 2 Melee . | . . . . . Uniques/NPCs Destroyed . | . . . . . Combat | -11 -10 -10 -10 -9 -------- Run | Yrd Mat Min Exi Min Hostile Shots Fired 175 | . 63 21 . 91 Missed 53 | . 18 9 . 26 Hits 122 | . 45 12 . 65 Melee 5 | . . . . 5 Projectile 117 | . 45 12 . 60 AOE 4 | . . . . 4 Critical Strikes 1 | . 1 . . . Damage Taken 1543 | . 421 131 . 991 Core 258 | . 100 9 . 149 Absorbed by Shields . | . . . . . Regen/Repaired (Parts) 27 | . 27 . . . Core Remaining (%) 100 | 100 . . . . Volleys Fired 110 | 26 50 8 8 18 Largest 2 | 1 2 2 2 2 Hottest 90 | 20 90 40 40 90 Shots Fired 179 | 26 97 10 16 30 Gun 166 | 26 97 4 16 23 Cannon . | . . . . . Launcher 13 | . . 6 . 7 Special . | . . . . . Kinetic 106 | 26 43 4 16 17 Thermal . | . . . . . Explosive 13 | . . 6 . 7 Electromagnetic 60 | . 54 . . 6 Robot Hit Streak 10 | 6 10 3 10 4 Robot Miss Streak 5 | 2 5 2 1 4 Penetration Max . | . . . . . Secondary Targets 6 | . 4 . . 2 Max Gunslinging Chain 1 | . 1 . . 1 Shots Hit Robots 111 | 18 61 4 13 15 Core Hits 73 | 6 32 11 2 22 Critical Kills . | . . . . . Critical Parts Destroyed 3 | 2 1 . . . Critical Strikes 3 | 2 1 . . . Destroy 3 | 2 1 . . . Melee Attacks . | . . . . . Impact . | . . . . . Slashing . | . . . . . Piercing . | . . . . . Sneak Attacks . | . . . . . Combat Hostiles . | . . . . . Follow-up Attacks . | . . . . . Damage Inflicted 2524 | 233 822 549 216 704 Guns 1453 | 233 808 16 216 180 Cannons . | . . . . . Explosions 1054 | . . 533 . 521 Melee . | . . . . . Ramming 17 | . 14 . . 3 Kinetic 907 | 233 334 16 216 108 Thermal . | . . . . . Explosive 1054 | . . 533 . 521 Electromagnetic 546 | . 474 . . 72 Impact . | . . . . . Slashing . | . . . . . Piercing . | . . . . . Highest Corruption 2 | . . . . 2 Average Corruption 2 | . . . . 2 Corruption Purged . | . . . . . Corruption Blocked . | . . . . . Overload Shots . | . . . . . Overflow Damage 47 | . . 23 . 24 Projectiles . | . . . . . Explosions 47 | . . 23 . 24 Melee . | . . . . . Knockbacks . | . . . . . Impact . | . . . . . Kinetic . | . . . . . Secondary . | . . . . . Self-Inflicted Damage 40 | . . 19 . 21 Shots 2 | . . 1 . 1 Rammed 5 | . 4 . . 1 Targets Rammed 5 | . 4 . . 1 Kicked . | . . . . . Crushed . | . . . . . Highest Temperature 180 | . 180 10 . 15 Average Temperature 43 | . 49 5 . 7 Received Heat Transfer 63 | . 36 27 . . Siege Activations . | . . . . . Martial Activations . | . . . . . Shielding Activations . | . . . . . Robots Disrupted . | . . . . . Combat Hostiles . | . . . . . Robots Corrupted . | . . . . . Combat Hostiles . | . . . . . Parts Fried 1 | . 1 . . . Impact Corruptions . | . . . . . Robots Melted . | . . . . . Combat Hostiles . | . . . . . Parts Melted . | . . . . . Heat Transferred . | . . . . . Parts Sabotaged . | . . . . . Parts Stolen . | . . . . . Parts Stripped . | . . . . . Power Chain Reactions . | . . . . . Alert | -11 -10 -10 -10 -9 ------- Run | Yrd Mat Min Exi Min Maximum Alert Level . | . . . . . Low Security (%) 100 | 100 100 100 . 100 Level 1 . | . . . . . Level 2 . | . . . . . Level 3 . | . . . . . Level 4 . | . . . . . Level 5 . | . . . . . High Security . | . . . . . Max Security . | . . . . . Peak Influence 175 | 15 128 175 . 25 Initial . | . . . . . Average 40 | 2 41 68 . . Influence Increases 718 | 30 419 225 5 39 Destroy 0b10 Robot/C 420 | . 260 160 . . Destroy 0b10 Robot/NC 85 | 30 45 5 5 . Destroy Leader 88 | . 58 30 . . Successful Hack 26 | . 26 . . . Disable Machine 30 | . 30 . . . Destroy Structure 69 | . . 30 . 39 Influence Decreases 718 | 30 419 225 5 39 Time Decay 679 | 30 419 225 5 . Lost Part 27 | . . . . 27 Lost Ally 12 | . . . . 12 Squads Dispatched 2 | . 2 . . . Investigation . | . . . . . Extermination . | . . . . . Reinforcement 2 | . 2 . . . Assault . | . . . . . Garrison . | . . . . . Intercept . | . . . . . Searches Triggered . | . . . . . Construction Impeded . | . . . . . Haulers Reinforced . | . . . . . Active Scanning Responses . | . . . . . Cargo Convoy Interrupts . | . . . . . Stealth | -11 -10 -10 -10 -9 --------- Run | Yrd Mat Min Exi Min Distress Signals 2 | . 2 . . . Communications Jammed . | . . . . . Distress Signals . | . . . . . Times Spotted 55 | . 22 8 . 25 Peak Tracking Total 19 | . 4 3 . 19 Tactical Retreats 1 | . . . . 1 Traps | -11 -10 -10 -10 -9 ------- Run | Yrd Mat Min Exi Min Traps Triggered 1 | . 1 . . . Indirectly . | . . . . . Trap Hack Attempts . | . . . . . Triggered . | . . . . . Disarmed . | . . . . . Reprogrammed . | . . . . . Reused . | . . . . . Traps Extracted . | . . . . . Installed . | . . . . . Triggered . | . . . . . Machines | -11 -10 -10 -10 -9 ---------- Run | Yrd Mat Min Exi Min Machines Disabled 2 | . 2 . . . Max in Single Turn 1 | . 1 . . . Machines Repaired . | . . . . . Machines Dismantled . | . . . . . Machines Sabotaged . | . . . . . Overloaded Fab Kills . | . . . . . Hacking | -11 -10 -10 -10 -9 --------- Run | Yrd Mat Min Exi Min Machines Accessed 11 | . 8 1 2 . Terminals 7 | . 6 1 . . Fabricators . | . . . . . Repair Stations 1 | . 1 . . . Recycling Units 1 | . 1 . . . Scanalyzers . | . . . . . Garrison Access . | . . . . . Total Hacks 22 | . 18 2 2 . Successful 15 | . 13 . 2 . Failed 6 | . 4 2 . . Catastrophic . | . . . . . Database Lockouts 1 | . 1 . . . Manual 12 | . 8 3 1 . Terminals 17 | . 15 2 . . Fabricators . | . . . . . Repair Stations 2 | . 2 . . . Recycling Units 1 | . 1 . . . Scanalyzers . | . . . . . Garrison Access . | . . . . . Terminal Hacks 10 | . 8 . 2 . Record 1 | . . . 1 . Robot Analysis 2 | . 2 . . . Alert Level 1 | . 1 . . . Locate Traps 2 | . 2 . . . Hauler Manifests 1 | . 1 . . . Registered Components 1 | . 1 . . . Zone Layout 1 | . 1 . . . Proto ID Catalog 1 | . . . 1 . Fabricator Hacks . | . . . . . Repair Station Hacks 2 | . 2 . . . Scan Component 1 | . 1 . . . Repair 1 | . 1 . . . Recycling Unit Hacks 1 | . 1 . . . Retrieve Components 1 | . 1 . . . Scanalyzer . | . . . . . Garrison Access Hacks . | . . . . . Unauthorized Hacks 2 | . 2 . . . Terminals 2 | . 2 . . . Botnet 2 | . 2 . . . Fabricators . | . . . . . Repair Stations . | . . . . . Recycling Units . | . . . . . Scanalyzers . | . . . . . Garrison Access . | . . . . . Data Cores Recovered . | . . . . . Used . | . . . . . Hacking Detections 8 | . 7 1 . . Full Trace Events . | . . . . . Feedback Events . | . . . . . Feedback Blocked . | . . . . . Robot Schematics Acquired . | . . . . . Robots Built . | . . . . . Authchips . | . . . . . Time . | . . . . . Total Robot Build Rating . | . . . . . Part Schematics Acquired . | . . . . . Parts Built . | . . . . . Authchips . | . . . . . Time . | . . . . . Total Part Build Rating . | . . . . . Parts Repaired 1 | . 1 . . . Time 32 | . 32 . . . Parts Recycled . | . . . . . Recycled Matter . | . . . . . Retrieved Matter . | . . . . . Retrieved Components 1 | . 1 . . . Parts Scanalyzed . | . . . . . Part Schematics Acquired . | . . . . . Parts Damaged . | . . . . . Bothacking | -11 -10 -10 -10 -9 ------------ Run | Yrd Mat Min Exi Min Used RIF Installer . | . . . . . Robots Hacked . | . . . . . Non-combat . | . . . . . Combat . | . . . . . Robot Hacks Applied . | . . . . . Relay Couplers Released . | . . . . . Fabnet Peak Effective % . | . . . . . Robots Rewired 3 | . . . 3 . Allies Hacked . | . . . . . Hacks Repelled . | . . . . . Allies | -11 -10 -10 -10 -9 -------- Run | Yrd Mat Min Exi Min Total Allies 6 | . . . 3 3 Largest Group 6 | . . . 3 6 Highest-Rated Group 90 | . . . 50 90 Highest-Rated Ally 21 | . . . 21 21 Total Orders . | . . . . . Ally Attacks 5 | . . . . 5 Total Damage 137 | . . . . 137 Kills . | . . . . . Allies Corrupted . | . . . . . Allies Melted . | . . . . . Intel | -11 -10 -10 -10 -9 ------- Run | Yrd Mat Min Exi Min Active Infowar (turns) 3410 | 65 1393 560 1137 255 Sensors 2 | . . . . 2 Seismic 3408 | 65 1393 560 1137 253 Robot Analysis Total 2 | . 2 . . . Derelict Logs Recovered 5 | . . 3 . 2 Drone Launches . | . . . . . Drone Recoveries . | . . . . . Exploration | -11 -10 -10 -10 -9 ------------- Run | Yrd Mat Min Exi Min Turns Passed 3558 | 186 1393 560 1137 282 Spaces Moved 2023 | 94 789 334 671 135 Core 3 | 3 . . . . Treads 1604 | . 464 334 671 135 Legs 334 | 91 243 . . . Wheels 82 | . 82 . . . Hover . | . . . . . Flight . | . . . . . Fastest Speed 50 | 50 80 160 160 160 Average Speed 150 | 117 139 160 160 160 Slowest Speed 240 | 120 190 160 160 240 Overloaded Moves . | . . . . . Propulsion Burnouts . | . . . . . Robots Hopped . | . . . . . Potential Cave-ins . | . . . . . Cave-ins Triggered . | . . . . . Exploration Rate (%) 64 | 4 95 96 90 37 Regions Visited 4 Branch Regions 3 Pre-discovered Areas 4 | . . 1 1 2 Known Exits Taken . | . . . . . Unknown Exits Taken 4 | 1 1 1 1 . Scrap Searched 3 | . . 1 . 2 Spaces Dug 15 | . . 6 . 9 Terrain Destroyed 81 | . . 35 . 46 Melee . | . . . . . Projectile . | . . . . . AOE 81 | . . 35 . 46 Terrain Rammed . | . . . . . Walls Destroyed . | . . . . . Machines Disabled . | . . . . . Actions | -11 -10 -10 -10 -9 --------- Run | Yrd Mat Min Exi Min Total 2358 | 140 983 347 720 168 Wait 79 | 3 76 . . . Move 2019 | 93 788 333 670 135 Hop . | . . . . . Pick Up 33 | 7 23 . 2 1 Fast Attach 9 | 6 3 . . . Attach 7 | 1 1 . . 5 Detach 1 | . 1 . . . Swap 34 | 2 19 6 2 5 Drop 23 | 2 18 . 2 1 Fire 110 | 26 50 8 8 18 Melee . | . . . . . Ram . | . . . . . Kick . | . . . . . Crush 5 | . 4 . . 1 Escape Stasis . | . . . . . Rewire 38 | . . . 36 2 Trap . | . . . . . Miscellaneous . | . . . . . Route ------- -11/Scrapyard -10/Materials (discovered 6 exits: [*Mat x3] / *Min x2 / [*Sub]) -10/Mines (discovered 4 exits: [*Mat x2] / *Exi / [*Sub]) -10/Exiles (discovered 2 exits: [*Min x2]) -9/Mines History --------- Turn | Location | Event 3 | -11/Scrapyard | Discovered new exit (range 16) 187 | -11/Scrapyard | Entered Materials 302 | -10/Materials | Build established: Mutant 369 | -10/Materials | Discovered new exit (range 7) 409 | -10/Materials | Discovered new exit (range 12) 659 | -10/Materials | Discovered new exit (range 13) 763 | -10/Materials | Central database locked down 788 | -10/Materials | Discovered new exit (range 15) 801 | -10/Materials | Discovered new exit (range 15) 1130 | -10/Materials | Discovered new exit (range 16) 1402 | -10/Materials | Repaired EM Shotgun 1580 | -10/Materials | Entered Mines 1636 | -10/Mines | Learned location of Zion (-6) 1657 | -10/Mines | Learned Materials garrison access intel 1886 | -10/Mines | Discovered new exit (range 15) 2004 | -10/Mines | Learned location of 1 exit from Materials 2022 | -10/Mines | Found a Scrap Suit stashed away for nefarious purposes 2028 | -10/Mines | Discovered new exit (range 10) 2083 | -10/Mines | Discovered new exit (range 13) 2132 | -10/Mines | Deemed a non-threat by the Exiles lab entrance 2134 | -10/Mines | Discovered new exit (range 5) 2140 | -10/Mines | Entered Exiles 2140 | -10/Exiles | Found Exiles lab destroyed 2311 | -10/Exiles | Opened EX-Vault 2320 | -10/Exiles | Found PSU Rigger 2901 | -10/Exiles | Discovered new exit (range 10) 3068 | -10/Exiles | Discovered new exit (range 15) 3277 | -10/Exiles | Entered Mines 3277 | -9/Mines | Accompanied by 3 allies 3282 | -9/Mines | Assisted by bots powering up and referring to "LRC-V3" 3417 | -9/Mines | Found a damaged Exp. Sensor Array with a note attached 3420 | -9/Mines | Found Prototype Device 3420 | -9/Mines | Identified Exp. Sensor Array 3486 | -9/Mines | Assembled infested the area 3517 | -9/Mines | Core integrity fell below 50% 3529 | -9/Mines | Lost 6 allies 3536 | -9/Mines | Core integrity fell below 20% 3559 | -9/Mines | Destroyed by as-38230 with Assembled Rifle Last Messages --------------- 03533_ Lgt. Treads destroyed. 03535_ as-77425 destroyed. 03539_ as-51419 destroyed. 03539_ Switching to secondary target: as-17893. 03539_ Assault Rifle destroyed. 03540_ The unstable cave ceiling collapses. 03543_ R-06 Scavenger collects Tractor Beam. 03545_ Assault Rifle destroyed. 03547_ The unstable cave ceiling collapses. 03547_ R-06 Scavenger collects Aluminum Leg. 03550_ The unstable cave ceiling collapses. 03551_ R-06 Scavenger collects Sml. Laser. 03552_ as-08081 destroyed. 03552_ U-05 Engineer builds a Wall. 03552_ Lgt. Treads destroyed. 03556_ U-05 Engineer lays Concrete. 03557_ The unstable cave ceiling collapses. 03557_ U-05 Engineer lays Concrete. 03558_ The unstable cave ceiling collapses. 03558_ Slammed into as-38230. Map ----- +----------------------------------------------------+ | | | | | | | | | | | | | | | | | | | | | | | | | | | | | | | | | | | | | ????????????????????????????????????????????????? | | ?????????????????????????????????####???????????? | | ?????????????????????####?????? #???????????? | | ????????????????????## ##???? ##?????????? | | ##??????????????????# #### ##????????? | | ##?????????????????# # % #????????? | | #????????????????## % #????????? | | #####???????????## %@ #????????? | | #??????????## % #a ## #???????? | | #?????###### ######????????????????? | | ### #????## ## a #?????????????????????? | | ##?# #???## = # #?????????????????????? | | ???# #???# # #?????????????????????? | | ???# #???# % # ??????????????????? | | ???# #???## ???????????????? | | ???# #????# u ] % ???????????????? | | ???# #####=# r % % # ????????????????? | | ???# # =%[% # #= ####??????????????????? | | #### # ###!#%# # ####?????????????????????? | | # # #?# # #?????????????????????????? | | #####%########??????????????????????????? | | #?? ?????????????????????????????????? | | """ #?# ?????????????????????????????????? | | """ ##?# ?????????????????????????????????? | | """ ##??# ""?????????????????????????????????? | | # ##???# ""?????????????????????????????????? | | # #????# ""?????????????????????????????????? | | # #????# ""?????????????????????????????????? | | # ##????# ???????????????????????????????????? | | ## #??????# ???????????????????????????????????? | | ?###???????? ???????????????????????????????????? | | ???????????? ???????????????????????????????????? | +----------------------------------------------------+ Best States ------------- Heat Dissipation 25 Energy Generation 15 Energy Capacity 250 Matter Stores 300 Matter Capacity 300 Sight Range 16 Terrain Scan Density 10 Evasion (%) 55 Recoil Reduction 2 Item Schematics ----------------- None Robot Schematics ------------------ None Fabricated ------------ Nothing Repaired ---------- EM Shotgun | 46% | -10/Materials Alien Tech Used ----------------- None Achievements -------------- None Challenges ------------ None Game ------ Seed BiomechanicalMetaManipulator Manual? 0 Play Time 00:23:39 Cumulative 353.9 hours Start 2025.10.16 @ 18:39:11 End 2025.10.16 @ 19:04:53 Sessions 1 Manual Loads 0 Difficulty Rogue Special Mode None Game No. 237 Rogue 237 Adventurer 0 Explorer 0 Win Type - Total 4 Types 3/0/1/0/0/0/0/0/0/0 Lore% 77 Gallery% 78 Achievement% 69 Wizard Run 0 Options --------- Layout 1 ASCII 0 Keyboard 0 Movement Numpad Keybinds 0 Fullscreen 1 Font 24/Smallcaps Map View 50x40 Zoom Use 0% Tactical HUD 1 Map Filters NONE Filters NONE Steam 1 RUN: c725bb92-5716-4149-bc76-9a5ddcb00ec6